Cogmind - Beta 11 X9 *** ADVENTURER MODE // 2022.01.18 @ 22:37:28 Player: Sardaukar Result: Destroyed by as-62140 with Assembled Heavy Rifle Performance ------------- Evolutions (0) 0 Regions Visited (2) 400 Robots Destroyed (15) 75 Value Destroyed (419) 419 Prototype IDs (0) 0 Alien Tech Used (0) 0 Bonus (0) 0 TOTAL SCORE: 894 Bonus ------- None Cogmind --------- Core Integrity 0/250 Matter 300/300 Energy 119/125 System Corruption 0% Temperature Cool (10) Movement Core (400) Ox7 Location -10/Mines Parts ------- > --- POWER (1) -------- Light Ion Engine > --- PROPULSION (2) --- (None) > --- UTILITY (2) ------ Large Storage Unit > --- WEAPON (2) ------- (None) > --- INVENTORY (15) --- Improved Ion Engine Medium Matter Pod (100) Visual Processing Unit Sensor Array Signal Interpreter Targeting Computer Utility Shielding Peak State ------------ > --- POWER ------------ Light Ion Engine > --- PROPULSION ------- Aluminum Leg Aluminum Leg > --- UTILITY ---------- Heat Sink Large Storage Unit > --- WEAPON ----------- Assault Rifle Heavy Assault Rifle > --- INVENTORY -------- Light Ion Engine Improved Ion Engine Medium Matter Pod Visual Processing Unit Sensor Array Signal Interpreter Targeting Computer Utility Shielding Light Assault Rifle Welding Torch [Rating: 9] Favorites ----------- Power Light Ion Engine Engine Light Ion Engine Propulsion Compact Wheel Leg Aluminum Leg Wheel Compact Wheel Utility Large Storage Unit Device Heat Sink Storage Large Storage Unit Weapon Assault Rifle Energy Gun Medium Laser Ballistic Gun Assault Rifle Special Weapon Welding Torch Build | -11 -10 -10 ------- Run | Scr Mat Min Slots Evolved . | . . . Power . | . . . Propulsion . | . . . Utility . | . . . Weapon . | . . . Parts Attached 18 | 6 4 8 Power 3 | 1 1 1 Engine 3 | 1 1 1 Core . | . . . Reactor . | . . . Propulsion 4 | 2 . 2 Treads . | . . . Leg 2 | . . 2 Wheel 2 | 2 . . Hover . | . . . Flight . | . . . Utility 4 | 1 2 1 Device 2 | . 1 1 Storage 2 | 1 1 . Processor . | . . . Hackware . | . . . Protection . | . . . Artifact . | . . . Weapon 7 | 2 1 4 Energy Gun 1 | 1 . . Energy Cannon . | . . . Ballistic Gun 5 | 1 1 3 Ballistic Cannon . | . . . Launcher . | . . . Special Weapon 1 | . . 1 Impact Weapon . | . . . Slashing Weapon . | . . . Piercing Weapon . | . . . Special Melee Weapon . | . . . Unidentified Prototypes . | . . . Parts Lost 11 | . 1 10 Power 2 | . 1 1 Propulsion 3 | . . 3 Utility 1 | . . 1 Weapon 5 | . . 5 Highest Loss Streak 8 | . 1 8 Average Slot Usage (%) 90 | . 87 95 Engine 10 | . 9 12 Leg 11 | . . 27 Wheel 16 | . 28 . Device 9 | . 7 14 Storage 14 | . 14 14 Energy Gun 1 | . 2 . Ballistic Gun 25 | . 25 24 Naked Turns . | . . . Heaviest Build 29 | 12 27 29 Greatest Support 32 | 32 32 32 Greatest Overweight (x) 1 | . . 1 Average Overweight (x) . | . . . Largest Inventory Capacity 15 | 8 15 15 Average Capacity 13 | 6 13 15 Most Carried 10 | 3 7 10 Average Carried 5 | . 3 8 Final Capacity 15 | 8 15 15 Final Carried 7 | 3 7 7 Class Distribution -------------------- 100% | Mutant Dominant Class ---------------- Mutant | -10/Materials Mutant | -10/Mines Resources | -11 -10 -10 ----------- Run | Scr Mat Min Matter Collected 639 | 241 183 215 Remotely . | . . . Salvage Created 602 | . 394 208 Parts 44 | . 37 7 Haulers Intercepted . | . . . Recyclers Shooed 2 | . 2 . Parts Field Recycled . | . . . Retrieved Matter . | . . . Parts Self-Destructed . | . . . Prevented . | . . . Kills | -11 -10 -10 ------- Run | Scr Mat Min Combat Hostiles Destroyed 18 | . 10 8 Guns 18 | . 10 8 Classes Destroyed 5 | . 3 2 Watcher 3 | . 3 . Swarmer 3 | . 3 . Grunt 7 | . 7 . Sentry 2 | . . 2 Assembled 6 | . . 6 Best Kill Streak 6 | . 5 6 Combat Bots Only 6 | . 5 6 Max Kills in Single Turn 1 | . 1 1 Gunslinging . | . . . Exploded . | . . . Melee . | . . . Uniques/NPCs Destroyed . | . . . Combat | -11 -10 -10 -------- Run | Scr Mat Min Damage Taken 1187 | . 261 926 Core 253 | . 63 190 Absorbed by Shields . | . . . Core Remaining (%) 100 | 100 . . Volleys Fired 54 | . 33 21 Largest 2 | . 2 2 Hottest 70 | . 70 43 Shots Fired 107 | . 66 41 Gun 104 | . 66 38 Cannon . | . . . Launcher . | . . . Special 3 | . . 3 Kinetic 101 | . 63 38 Thermal 6 | . 3 3 Explosive . | . . . Electromagnetic . | . . . Robot Hit Streak 26 | . 26 14 Robot Miss Streak 2 | . 2 1 Penetration Max . | . . . Secondary Targets 5 | . 3 2 Max Gunslinging Chain 1 | . 1 1 Shots Hit Robots 86 | . 51 35 Core Hits 40 | . 22 18 Critical Kills . | . . . Critical Parts Destroyed . | . . . Critical Strikes . | . . . Melee Attacks . | . . . Impact . | . . . Slashing . | . . . Piercing . | . . . Sneak Attacks . | . . . Combat Hostiles . | . . . Follow-up Attacks . | . . . Damage Inflicted 927 | . 576 351 Guns 919 | . 576 343 Cannons . | . . . Explosions . | . . . Melee . | . . . Ramming 2 | . . 2 Kinetic 906 | . 563 343 Thermal 19 | . 13 6 Explosive . | . . . Electromagnetic . | . . . Impact . | . . . Slashing . | . . . Piercing . | . . . Highest Corruption . | . . . Average Corruption . | . . . Corruption Purged . | . . . Overload Shots . | . . . Overflow Damage . | . . . Projectiles . | . . . Explosions . | . . . Melee . | . . . Knockbacks . | . . . Impact . | . . . Kinetic . | . . . Secondary . | . . . Self-Inflicted Damage . | . . . Shots . | . . . Rammed 1 | . . 1 Targets Rammed 4 | . . 4 Kicked 3 | . . 3 Crushed . | . . . Highest Temperature 27 | . 27 26 Average Temperature 8 | . 7 11 Received Heat Transfer 678 | . 183 495 Siege Activations . | . . . Robots Corrupted . | . . . Combat Hostiles . | . . . Parts Fried . | . . . Impact Corruptions . | . . . Robots Melted . | . . . Combat Hostiles . | . . . Parts Melted . | . . . Heat Transferred 87 | . 37 50 Parts Sabotaged . | . . . Parts Stolen . | . . . Parts Stripped . | . . . Power Chain Reactions . | . . . Missiles Intercepted . | . . . Alert | -11 -10 -10 ------- Run | Scr Mat Min Peak Influence 294 | . 294 91 Initial 56 | . . 56 Average 109 | . 156 76 Maximum Alert Level 1 | . 1 . Low Security (%) 79 | 100 60 100 Level 1 20 | . 39 . Level 2 . | . . . Level 3 . | . . . Level 4 . | . . . Level 5 . | . . . High Security . | . . . Max Security . | . . . Squads Dispatched 3 | . 3 . Investigation 3 | . 3 . Extermination . | . . . Reinforcement . | . . . Assault . | . . . Garrison . | . . . Intercept . | . . . Construction Impeded . | . . . Haulers Reinforced . | . . . Active Scanning Responses . | . . . Cargo Convoy Interrupts . | . . . Stealth | -11 -10 -10 --------- Run | Scr Mat Min Distress Signals 1 | . 1 . Communications Jammed . | . . . Distress Signals . | . . . Times Spotted 35 | . 16 19 Peak Tracking Total 9 | . 3 9 Tactical Retreats . | . . . Traps | -11 -10 -10 ------- Run | Scr Mat Min Traps Triggered . | . . . Indirectly . | . . . Trap Hack Attempts . | . . . Triggered . | . . . Disarmed . | . . . Reprogrammed . | . . . Reused . | . . . Traps Extracted . | . . . Installed . | . . . Triggered . | . . . Machines | -11 -10 -10 ---------- Run | Scr Mat Min Machines Disabled 1 | . . 1 Max in Single Turn 1 | . . 1 Machines Sabotaged . | . . . Garrisons Compromised . | . . . Overloaded Fab Kills . | . . . Hacking | -11 -10 -10 --------- Run | Scr Mat Min Machines Accessed 5 | . 5 . Terminals 5 | . 5 . Fabricators . | . . . Repair Stations . | . . . Recycling Units . | . . . Scanalyzers . | . . . Garrison Access . | . . . Total Hacks 21 | . 21 . Successful 9 | . 9 . Failed 12 | . 12 . Catastrophic . | . . . Database Lockouts . | . . . Manual 20 | . 20 . Terminals 21 | . 21 . Fabricators . | . . . Repair Stations . | . . . Recycling Units . | . . . Scanalyzers . | . . . Garrison Access . | . . . Terminal Hacks 8 | . 8 . Record 1 | . 1 . Robot Analysis 2 | . 2 . Terminal Index 1 | . 1 . Alert Level 3 | . 3 . Unreport Threat 1 | . 1 . Fabricator Hacks . | . . . Repair Station Hacks . | . . . Recycling Unit Hacks . | . . . Scanalyzer . | . . . Garrison Access Hacks . | . . . Unauthorized Hacks 1 | . 1 . Terminals 1 | . 1 . Botnet 1 | . 1 . Fabricators . | . . . Repair Stations . | . . . Recycling Units . | . . . Scanalyzers . | . . . Garrison Access . | . . . Data Cores Recovered . | . . . Used . | . . . Hacking Detections 5 | . 5 . Full Trace Events 4 | . 4 . Feedback Events . | . . . Feedback Blocked . | . . . Robot Schematics Acquired . | . . . Robots Built . | . . . Authchips . | . . . Time . | . . . Total Robot Build Rating . | . . . Part Schematics Acquired . | . . . Parts Built . | . . . Authchips . | . . . Time . | . . . Total Part Build Rating . | . . . Parts Repaired . | . . . Time . | . . . Parts Recycled . | . . . Recycled Matter . | . . . Retrieved Matter . | . . . Retrieved Components . | . . . Parts Scanalyzed . | . . . Part Schematics Acquired . | . . . Parts Damaged . | . . . Bothacking | -11 -10 -10 ------------ Run | Scr Mat Min Used RIF Installer . | . . . Robots Hacked . | . . . Non-combat . | . . . Combat . | . . . Robot Hacks Applied . | . . . Relay Couplers Released . | . . . Fabnet Peak Effective % . | . . . Robots Rewired . | . . . Allies Hacked . | . . . Hacks Repelled . | . . . Allies | -11 -10 -10 -------- Run | Scr Mat Min Total Allies 2 | . . 2 Largest Group 2 | . . 2 Highest-Rated Group 35 | . . 35 Highest-Rated Ally 31 | . . 31 Total Orders . | . . . Ally Attacks 9 | . . 9 Total Damage 142 | . . 142 Kills 3 | . . 3 Allies Corrupted . | . . . Allies Melted . | . . . Intel | -11 -10 -10 ------- Run | Scr Mat Min Robot Analysis Total 2 | . 2 . Derelict Logs Recovered . | . . . Drone Launches . | . . . Drone Recoveries . | . . . Exploration | -11 -10 -10 ------------- Run | Scr Mat Min Turns Passed 605 | 67 316 222 Spaces Moved 344 | 56 212 76 Core 3 | 3 . . Treads . | . . . Legs 71 | . . 71 Wheels 270 | 53 212 5 Hover . | . . . Flight . | . . . Fastest Speed 50 | 50 100 100 Average Speed 118 | 97 100 184 Slowest Speed 190 | 100 100 190 Overloaded Moves . | . . . Propulsion Burnouts . | . . . Robots Hopped . | . . . Cave-ins Triggered . | . . . Exploration Rate (%) 22 | 4 42 21 Regions Visited 2 Branch Regions 1 Pre-discovered Areas . | . . . Known Exits Taken . | . . . Unknown Exits Taken 2 | 1 1 . Scrap Searched . | . . . Spaces Dug . | . . . Terrain Destroyed . | . . . Melee . | . . . Projectile . | . . . AOE . | . . . Terrain Rammed . | . . . Walls Destroyed . | . . . Machines Disabled . | . . . Actions | -11 -10 -10 --------- Run | Scr Mat Min Total 437 | 66 255 116 Wait . | . . . Move 342 | 55 211 76 Hop . | . . . Pick Up 14 | 4 5 5 Fast Attach 10 | 6 3 1 Attach 6 | . 1 5 Detach . | . . . Swap 2 | . . 2 Drop 5 | 1 2 2 Fire 54 | . 33 21 Melee . | . . . Ram 1 | . . 1 Kick 3 | . . 3 Crush . | . . . Escape Stasis . | . . . Rewire . | . . . Trap . | . . . Miscellaneous . | . . . Route ------- -11/Scrapyard -10/Materials -10/Mines History --------- Turn | Location | Event 26 | -11/Scrapyard | Discovered new exit (range 13) 68 | -11/Scrapyard | Entered Materials 324 | -10/Materials | Build established: Mutant 361 | -10/Materials | Discovered new exit (range 15) 384 | -10/Materials | Entered Mines 505 | -10/Mines | Assembled infested the area 542 | -10/Mines | Core integrity fell below 50% 579 | -10/Mines | Core integrity fell below 20% 606 | -10/Mines | Destroyed by as-62140 with Assembled Heavy Rifle Last Messages --------------- 00570_ as-30400 destroyed. 00570_ Switching to secondary target: as-67390. 00572_ as-67390 destroyed. 00575_ Acquired 19 matter. 00576_ as-52024 destroyed. 00581_ Lgt. Assault Rifle destroyed. 00587_ as-70402 destroyed. 00587_ Hvy. Assault Rifle destroyed. 00588_ Acquired 15 matter. 00591_ Welding Torch destroyed. 00592_ Acquired 15 matter. 00594_ Acquired 4 matter. 00596_ T-07 Excavator suffers critical hit (Destroy). 00596_ T-07 Excavator destroyed. 00599_ Kicked as-62140. 00601_ as-49560 destroyed. 00601_ Kicked as-62140. 00604_ Aluminum Leg destroyed. 00605_ Slammed into as-62140. 00605_ Heat Sink destroyed. Map ----- +----------------------------------------------------+ | ??????????????????####??????# #??? | | ????????????????????????????# #??? | | ????????????????????????????# #??? | | ????????????????????????##### #### | | ????????????????????????# | | ????????????????????????# ###### # | | ?????????????####???????# #??????# | | ????????????## ##??????# #??????? | | ????????????# #??????# #??????? | | ????????????# ##?????# #??????? | | ????????????# ##???## #??????? | | ??????####??# #??## ######## | | ??????# #### """ #### # | | ??????# ## """ #### # | | ??????# """ #????? | | ??????# ##### ##????? | | ??????## ##???# #?????? | | ???????#%! ###????# #????? | | ???????#* ######??????## #????? | | ???????#% #????????????# #????? | | ???????#%!#????????????# #????? | | ??######=%#????????????# ##????? | | ??# %%*%#????????????# ##?????? | | ??# %%%|####?????????# #??????? | | ??# #####a*!##???????? #??????? | | ??# a@|% #????????####??????? | | ??# $